[Event "DVM U20 2019"]
[Site "Braunschweig"]
[Date "2019.12.27"]
[Round "2"]
[White "Melde, Benjamin"]
[Black "Hoffmann, Jens"]
[Result "1-0"]
[ECO "A20"]
[WhiteElo "2120"]
[BlackElo "2113"]
[Annotator "NA"]
[PlyCount "72"]
[EventDate "2019.12.27"]
[EventType "team-tourn"]
[EventRounds "7"]
[EventCountry "GER"]
[SourceTitle "playchess.com"]
[Source "ChessBase"]
[SourceQuality "1"]
[WhiteTeam "SK Turm Kleve"]
[BlackTeam "SF HN-Biberach"]
[TimeControl "40/5400+30:1800+30"]

1. c4 {[%emt 0:00:00]} e5 {[%emt 0:00:00]} 2. g3 {[%emt 0:00:00]} Nf6 {[%emt 0:00:00]} 3. Bg2 {[%emt 0:00:00]} d5 {[%emt 0:00:00]} 4. cxd5 {[%emt 0:00:00]} Nxd5 {[%emt 0:00:00]} 5. Nc3 {[%emt 0:00:03]} Nb6 {[%emt 0:00:03]} 6. Nf3 {[%emt 0:00:05]} Nc6 {[%emt 0:00:07]} 7. O-O {[%emt 0:00:05]} Be7 {[%emt 0:00:09]} 8. a3 {[%emt 0:00:04]} O-O {[%emt 0:01:05]} 9. b4 {[%emt 0:00:05]} a6 {[%emt 0:01:13]} 10. Bb2 {[%emt 0:02:06]} Nc4 {[%emt 0:04:27]} 11. Bc1 {[%emt 0:00:05]} Be6 {[%emt 0:03:03]} 12. d3 {[%emt 0:00:28]} Nd6 {[%emt 0:12:04]} 13. Bb2 {[%emt 0:00:29]} f6 {[%emt 0:12:39]} 14. Rc1 {[%emt 0:00:51]} Qd7 {[%emt 0:10:08]} 15. Na4 {[%emt 0:07:44]} Nf5 {[%emt 0:02:28]} 16. Nd2 {[%emt 0:02:18]} Nfd4 {[%emt 0:02:48]} 17. e3 {[%emt 0:04:49]} Nb5 {[%emt 0:04:02]} 18. Ne4 {[%emt 0:03:20]} Bd5 {[%emt 0:20:34]} 19. Nec5 {[%emt 0:11:17]} Bxc5 {[%emt 0:00:10]} 20. Nxc5 {[%emt 0:00:02]} Qf7 {[%emt 0:00:59]} 21. Nxb7 {[%emt 0:00:21]} Rfe8 {[%emt 0:06:13]} 22. Nc5 {[%emt 0:03:38]} Red8 {[%emt 0:03:51]} 23. Qc2 {[%emt 0:22:08]} a5 {[%emt 0:14:09]} 24. Nb7 {[%emt 0:12:08]} Rdb8 {[%emt 0:00:20]} 25. Bxd5 {[%emt 0:00:02]} Qxd5 {[%emt 0:00:12]} 26. Qxc6 {[%emt 0:00:02]} Qxc6 {[%emt 0:00:17]} 27. Rxc6 {[%emt 0:00:01]} Rxb7 {[%emt 0:00:09]} 28. a4 {[%emt 0:00:04]} Na7 {[%emt 0:00:39]} 29. Ra6 {[%emt 0:00:19]} axb4 {[%emt 0:01:55]} 30. d4 {[%emt 0:00:15]} Rab8 {[%emt 0:00:42]} 31. dxe5 {[%emt 0:00:38]} fxe5 {[%emt 0:00:16]} 32. Bxe5 {[%emt 0:00:01]} b3 {[%emt 0:00:43]} 33. Rb1 {[%emt 0:00:05]} Rd8 {[%emt 0:00:31]} 34. Bd4 {[%emt 0:04:59]} Nc8 {[%emt 0:00:02]} 35. Ra8 {[%emt 0:00:04]} Kf7 {[%emt 0:00:43]} 36. a5 {[%emt 0:00:05]} Rb5 {[%emt 0:00:42] normal} 1-0

[Event "DVM U20 2019"]
[Site "Braunschweig"]
[Date "2019.12.27"]
[Round "2"]
[White "Poghosyan, Tigran"]
[Black "Richter, Philipp"]
[Result "1/2-1/2"]
[ECO "C05"]
[WhiteElo "2109"]
[BlackElo "2084"]
[Annotator "NA"]
[PlyCount "48"]
[EventDate "2019.12.27"]
[EventType "team-tourn"]
[EventRounds "7"]
[EventCountry "GER"]
[SourceTitle "playchess.com"]
[Source "ChessBase"]
[SourceQuality "1"]
[WhiteTeam "Lübecker SV"]
[BlackTeam "USV TU Dresden"]
[TimeControl "40/5400+30:1800+30"]

1. e4 {[%emt 0:00:00]} e6 {[%emt 0:00:00]} 2. d4 {[%emt 0:00:00]} d5 3. Nd2 {[%emt 0:00:00]} Nf6 {[%emt 0:00:00]} 4. e5 {[%emt 0:00:00]} Nfd7 {[%emt 0:00:00]} 5. Bd3 {[%emt 0:00:00]} c5 {[%emt 0:00:00]} 6. c3 {[%emt 0:00:00]} Nc6 7. Ndf3 cxd4 {[%emt 0:00:16]} 8. cxd4 {[%emt 0:00:24]} f6 {[%emt 0:00:06]} 9. exf6 {[%emt 0:00:10]} Nxf6 {[%emt 0:00:05]} 10. Nh3 {[%emt 0:00:12]} Qa5+ {[%emt 0:00:05]} 11. Bd2 {[%emt 0:07:48]} Bb4 {[%emt 0:00:14]} 12. Bxb4 {[%emt 0:08:49]} Qxb4+ {[%emt 0:00:10]} 13. Qd2 {[%emt 0:00:19]} Qxd2+ {[%emt 0:00:08]} 14. Kxd2 {[%emt 0:00:02]} O-O {[%emt 0:00:14]} 15. Rhe1 {[%emt 0:11:12]} e5 {[%emt 0:00:09]} 16. Nxe5 {[%emt 0:03:03]} Bxh3 {[%emt 0:05:13]} 17. Nxc6 {[%emt 0:05:34]} bxc6 {[%emt 0:06:45]} 18. gxh3 {[%emt 0:00:27]} Nh5 {[%emt 0:02:50]} 19. Re5 {[%emt 0:06:39]} Rxf2+ {[%emt 0:18:34]} 20. Ke1 {[%emt 0:00:06]} Rxh2 {[%emt 0:00:13]} 21. Rxh5 {[%emt 0:00:04]} Rh1+ {[%emt 0:00:14]} 22. Bf1 {[%emt 0:00:02]} Rf8 {[%emt 0:00:13]} 23. Ke2 {[%emt 0:00:04]} Rh2+ {[%emt 0:00:06] normal} 24. Ke3 {[%emt 0:04:06]} Rh1 {[%emt 0:00:08] normal} 1/2-1/2

[Event "DVM U20 2019"]
[Site "Braunschweig"]
[Date "2019.12.27"]
[Round "2"]
[White "Meiwes, Thore"]
[Black "Koll, Lukas"]
[Result "1-0"]
[ECO "D00"]
[WhiteElo "2106"]
[BlackElo "2093"]
[Annotator "NA"]
[PlyCount "85"]
[EventDate "2019.12.27"]
[EventType "team-tourn"]
[EventRounds "7"]
[EventCountry "GER"]
[SourceTitle "playchess.com"]
[Source "ChessBase"]
[SourceQuality "1"]
[WhiteTeam "SK Lehrte 1919"]
[BlackTeam "Karlsruher SF"]
[TimeControl "40/5400+30:1800+30"]

1. d4 {[%emt 0:00:00]} d5 {[%emt 0:00:00]} 2. Bf4 {[%emt 0:00:00]} Nf6 {[%emt 0:00:00]} 3. e3 {[%emt 0:00:00]} c5 {[%emt 0:00:00]} 4. c3 {[%emt 0:00:19]} Nc6 {[%emt 0:00:00]} 5. Nd2 {[%emt 0:00:04]} e6 {[%emt 0:01:37]} 6. Ngf3 {[%emt 0:00:53]} Bd6 {[%emt 0:00:06]} 7. Bg3 {[%emt 0:00:06]} O-O {[%emt 0:00:07]} 8. Bd3 {[%emt 0:00:04]} b6 {[%emt 0:00:33]} 9. Qe2 {[%emt 0:00:08]} Be7 {[%emt 0:07:27]} 10. Ne5 {[%emt 0:03:55]} Bb7 {[%emt 0:02:27]} 11. Rd1 {[%emt 0:02:27]} a5 {[%emt 0:04:17]} 12. O-O {[%emt 0:06:06]} c4 {[%emt 0:03:31]} 13. Bb1 {[%emt 0:03:35]} b5 {[%emt 0:00:30]} 14. f4 {[%emt 0:01:46]} b4 {[%emt 0:00:27]} 15. Bh4 {[%emt 0:02:40]} a4 {[%emt 0:02:34]} 16. Rf3 g6 {[%emt 0:09:24]} 17. Rh3 {[%emt 0:27:52]} Ne8 {[%emt 0:08:45]} 18. Qg4 {[%emt 0:13:10]} f5 {[%emt 0:09:43]} 19. Qg3 {[%emt 0:01:37]} Nxe5 {[%emt 0:00:36]} 20. fxe5 {[%emt 0:02:13]} a3 {[%emt 0:00:54]} 21. Nf3 {[%emt 0:01:25]} Rf7 {[%emt 0:02:41]} 22. Ng5 {[%emt 0:01:22]} Bxg5 {[%emt 0:00:33]} 23. Bxg5 {[%emt 0:00:07]} Qc7 {[%emt 0:01:07]} 24. Rh6 {[%emt 0:07:35]} Rg7 {[%emt 0:20:49]} 25. Qf2 {[%emt 0:04:20]} bxc3 {[%emt 0:06:57]} 26. bxc3 {[%emt 0:03:34]} Bc6 {[%emt 0:00:15]} 27. Rf1 {[%emt 0:01:53]} Rb8 {[%emt 0:00:33]} 28. h4 {[%emt 0:01:15]} Rb2 {[%emt 0:00:08]} 29. Qe1 {[%emt 0:01:24]} Qb8 {[%emt 0:03:42]} 30. h5 {[%emt 0:03:44]} gxh5 {[%emt 0:00:41]} 31. Rxh5 {[%emt 0:00:32]} Qb7 {[%emt 0:00:45]} 32. Kh1 {[%emt 0:02:13]} Qf7 {[%emt 0:04:02]} 33. Qh4 {[%emt 0:01:18]} Qg6 {[%emt 0:01:18]} 34. g4 {[%emt 0:01:33]} Bd7 {[%emt 0:01:06]} 35. gxf5 {[%emt 0:01:38]} exf5 {[%emt 0:00:16]} 36. Rg1 {[%emt 0:00:30]} Kh8 {[%emt 0:03:54]} 37. Rh6 {[%emt 0:00:44]} Qf7 {[%emt 0:00:28]} 38. Rf6 {[%emt 0:02:26]} Qg8 {[%emt 0:00:49]} 39. Qh6 {[%emt 0:03:07]} Nc7 {[%emt 0:03:49]} 40. Bxf5 {[%emt 0:01:08]} Bxf5 {[%emt 0:02:03]} 41. Rxf5 {[%emt 0:30:45]} Ne8 {[%emt 0:30:44]} 42. Rgf1 {[%emt 0:00:00]} Rg6 {[%emt 0:00:00]} 43. Qh4 {[%emt 0:00:00] normal} 1-0

[Event "DVM U20 2019"]
[Site "Braunschweig"]
[Date "2019.12.27"]
[Round "2"]
[White "Garbuz, Vitaliy"]
[Black "Vuckovic, Robert"]
[Result "1-0"]
[ECO "C05"]
[WhiteElo "2064"]
[BlackElo "1897"]
[Annotator "NA"]
[PlyCount "81"]
[EventDate "2019.12.27"]
[EventType "team-tourn"]
[EventRounds "7"]
[EventCountry "GER"]
[SourceTitle "playchess.com"]
[Source "ChessBase"]
[SourceQuality "1"]
[WhiteTeam "SF Brackel"]
[BlackTeam "SF Augsburg"]
[TimeControl "40/5400+30:1800+30"]

1. e4 {[%emt 0:00:00]} e6 {[%emt 0:00:00]} 2. d4 {[%emt 0:00:00]} d5 {[%emt 0:00:00]} 3. Nd2 {[%emt 0:00:00]} Nf6 {[%emt 0:00:00]} 4. e5 {[%emt 0:00:00]} Nfd7 {[%emt 0:00:00]} 5. f4 {[%emt 0:00:00]} c5 {[%emt 0:00:04]} 6. c3 {[%emt 0:00:00]} Nc6 {[%emt 0:00:12]} 7. Ndf3 {[%emt 0:00:03]} Qb6 {[%emt 0:03:33]} 8. g3 {[%emt 0:00:16]} cxd4 {[%emt 0:00:49]} 9. cxd4 {[%emt 0:00:07]} Bb4+ {[%emt 0:00:34]} 10. Kf2 {[%emt 0:00:07]} f6 {[%emt 0:03:03]} 11. Kg2 {[%emt 0:00:22]} O-O {[%emt 0:02:05]} 12. Bd3 {[%emt 0:00:29]} f5 {[%emt 0:04:55]} 13. Ne2 {[%emt 0:01:18]} Be7 {[%emt 0:00:41]} 14. a3 {[%emt 0:03:52]} a5 {[%emt 0:01:47]} 15. Nc3 {[%emt 0:00:56]} Ndb8 {[%emt 0:03:25]} 16. h3 {[%emt 0:05:17]} Bd7 {[%emt 0:00:07]} 17. Qe2 {[%emt 0:03:31]} Na6 {[%emt 0:07:46]} 18. g4 {[%emt 0:00:35]} Nc7 {[%emt 0:00:56]} 19. Be3 {[%emt 0:00:56]} a4 {[%emt 0:02:43]} 20. Rac1 {[%emt 0:05:13]} Na5 {[%emt 0:01:14]} 21. Nd2 {[%emt 0:00:58]} Rac8 {[%emt 0:08:16]} 22. Rc2 {[%emt 0:28:06]} Nb3 {[%emt 0:06:19]} 23. Nxb3 {[%emt 0:01:17]} axb3 {[%emt 0:00:12]} 24. Rcc1 {[%emt 0:00:58]} Rfd8 {[%emt 0:01:21]} 25. Kh2 {[%emt 0:01:34]} Ne8 {[%emt 0:07:14]} 26. gxf5 {[%emt 0:01:27]} Rxc3 {[%emt 0:00:17]} 27. Rxc3 {[%emt 0:00:23]} exf5 {[%emt 0:00:17]} 28. Rhc1 {[%emt 0:01:25]} g6 {[%emt 0:03:32]} 29. Qd1 {[%emt 0:02:19]} Ba4 {[%emt 0:06:19]} 30. Be2 {[%emt 0:00:08]} Ng7 {[%emt 0:01:43]} 31. Qd3 {[%emt 0:01:12]} Ne6 {[%emt 0:00:13]} 32. Bd1 {[%emt 0:00:30]} Kh8 {[%emt 0:01:38]} 33. Bxb3 {[%emt 0:00:46]} Bb5 {[%emt 0:00:13]} 34. Qd2 {[%emt 0:00:36]} Bc6 {[%emt 0:01:37]} 35. Bd1 {[%emt 0:02:39]} g5 {[%emt 0:00:36]} 36. fxg5 {[%emt 0:00:43]} f4 {[%emt 0:00:29]} 37. Bxf4 {[%emt 0:00:59]} Nxf4 {[%emt 0:00:20]} 38. Qxf4 {[%emt 0:00:09]} Rf8 {[%emt 0:00:03]} 39. Qd2 {[%emt 0:00:24]} Bxg5 {[%emt 0:00:12]} 40. Qxg5 {[%emt 0:00:25]} Qxd4 {[%emt 0:00:21]} 41. Rf3 {[%emt 0:31:07] normal} 1-0

[Event "DVM U20 2019"]
[Site "Braunschweig"]
[Date "2019.12.27"]
[Round "2"]
[White "Yankelevich, Michael"]
[Black "Wendler, David"]
[Result "1/2-1/2"]
[ECO "B24"]
[WhiteElo "2064"]
[BlackElo "2204"]
[Annotator "NA"]
[PlyCount "48"]
[EventDate "2019.12.27"]
[EventType "team-tourn"]
[EventRounds "7"]
[EventCountry "GER"]
[SourceTitle "playchess.com"]
[Source "ChessBase"]
[SourceQuality "1"]
[WhiteTeam "SG Trier"]
[BlackTeam "SK Bebenhausen"]
[TimeControl "40/5400+30:1800+30"]

1. e4 c5 {[%emt 0:00:00]} 2. Nc3 {[%emt 0:00:00]} Nc6 {[%emt 0:00:00]} 3. Bb5 {[%emt 0:00:00]} Nd4 {[%emt 0:00:13]} 4. Bc4 {[%emt 0:00:00]} g6 {[%emt 0:02:10]} 5. Nf3 {[%emt 0:00:03]} Bg7 {[%emt 0:01:08]} 6. Nxd4 {[%emt 0:01:08]} cxd4 {[%emt 0:03:21]} 7. Qf3 {[%emt 0:01:44]} Nh6 {[%emt 0:10:02]} 8. d3 {[%emt 0:02:40]} O-O {[%emt 0:04:15]} 9. Nd5 {[%emt 0:02:25]} e6 {[%emt 0:02:51]} 10. Nf4 {[%emt 0:00:18]} d5 {[%emt 0:10:39]} 11. exd5 {[%emt 0:01:05]} e5 {[%emt 0:05:44]} 12. Nh3 {[%emt 0:00:46]} Bg4 {[%emt 0:05:08]} 13. Qg3 {[%emt 0:00:33]} f5 {[%emt 0:06:24]} 14. Bxh6 {[%emt 0:00:47]} Bxh6 {[%emt 0:00:07]} 15. O-O {[%emt 0:01:13]} Qf6 {[%emt 0:03:39]} 16. f4 {[%emt 0:01:59]} Rae8 {[%emt 0:06:23]} 17. fxe5 {[%emt 0:02:23]} Qxe5 {[%emt 0:02:59]} 18. Qxe5 {[%emt 0:00:13]} Rxe5 {[%emt 0:00:06]} 19. Nf4 {[%emt 0:00:29]} Rfe8 {[%emt 0:07:34]} 20. Ne6 {[%emt 0:00:59]} Be3+ {[%emt 0:00:47]} 21. Kh1 {[%emt 0:00:04]} Kh8 {[%emt 0:01:13]} 22. h3 {[%emt 0:01:48]} Be2 {[%emt 0:02:29]} 23. Rfe1 {[%emt 0:01:05] normal} R8xe6 {[%emt 0:01:35]} 24. dxe6 {[%emt 0:00:42]} Bf2 1/2-1/2

[Event "DVM U20 2019"]
[Site "Braunschweig"]
[Date "2019.12.27"]
[Round "2"]
[White "Hoffmann, Lennard"]
[Black "Fuhrmann, Äke"]
[Result "1/2-1/2"]
[ECO "B76"]
[WhiteElo "2059"]
[BlackElo "1879"]
[Annotator "NA"]
[PlyCount "88"]
[EventDate "2019.12.27"]
[EventType "team-tourn"]
[EventRounds "7"]
[EventCountry "GER"]
[SourceTitle "playchess.com"]
[Source "ChessBase"]
[SourceQuality "1"]
[WhiteTeam "SG Aufbau Elbe Magdeburg"]
[BlackTeam "Hamburger SK"]
[TimeControl "40/5400+30:1800+30"]

1. e4 {[%emt 0:00:00]} c5 {[%emt 0:00:00]} 2. Nf3 {[%emt 0:00:00]} d6 {[%emt 0:00:00]} 3. d4 {[%emt 0:00:00]} cxd4 {[%emt 0:00:00]} 4. Nxd4 {[%emt 0:00:00]} Nf6 {[%emt 0:00:01]} 5. Nc3 {[%emt 0:00:00]} g6 {[%emt 0:00:06]} 6. Be3 {[%emt 0:00:22]} Bg7 {[%emt 0:00:07]} 7. f3 {[%emt 0:00:15]} O-O {[%emt 0:00:08]} 8. Qd2 {[%emt 0:00:07]} Nc6 {[%emt 0:00:08]} 9. O-O-O {[%emt 0:00:06]} d5 {[%emt 0:00:04]} 10. exd5 {[%emt 0:00:08]} Nxd5 {[%emt 0:00:06]} 11. Nxc6 {[%emt 0:00:09]} bxc6 {[%emt 0:00:06]} 12. Bd4 {[%emt 0:00:16]} Bxd4 {[%emt 0:00:07]} 13. Qxd4 {[%emt 0:00:09]} Qb6 {[%emt 0:00:06]} 14. Nxd5 {[%emt 0:07:07]} cxd5 {[%emt 0:00:07]} 15. h4 {[%emt 0:05:59]} Qxd4 {[%emt 0:03:04]} 16. Rxd4 {[%emt 0:00:06]} Bb7 {[%emt 0:00:13]} 17. h5 {[%emt 0:02:39]} e5 {[%emt 0:07:33]} 18. Rb4 {[%emt 0:05:11]} Bc6 {[%emt 0:03:50]} 19. Bd3 {[%emt 0:10:07]} f5 {[%emt 0:10:16]} 20. hxg6 {[%emt 0:28:24]} hxg6 {[%emt 0:00:09]} 21. Rbh4 {[%emt 0:02:09]} Kf7 {[%emt 0:01:17]} 22. Rh7+ {[%emt 0:07:10]} Ke6 {[%emt 0:01:09]} 23. R1h6 {[%emt 0:02:19]} Rg8 {[%emt 0:03:24]} 24. g4 {[%emt 0:01:15]} e4 {[%emt 0:02:36]} 25. gxf5+ {[%emt 0:01:00]} Kxf5 {[%emt 0:00:08]} 26. fxe4+ {[%emt 0:02:47]} dxe4 {[%emt 0:01:33]} 27. Bc4 {[%emt 0:04:16]} Rgf8 {[%emt 0:11:40]} 28. Kd2 {[%emt 0:05:46]} Kg5 {[%emt 0:06:58]} 29. Rh2 {[%emt 0:01:15]} Rad8+ {[%emt 0:06:40]} 30. Ke2 {[%emt 0:00:30]} e3 {[%emt 0:00:25]} 31. R2h3 {[%emt 0:02:43]} Bd7 {[%emt 0:08:05]} 32. Rg3+ {[%emt 0:09:24]} Bg4+ {[%emt 0:00:15]} 33. Kxe3 {[%emt 0:00:54]} Rfe8+ {[%emt 0:01:49]} 34. Kf2 {[%emt 0:00:08]} Rd2+ {[%emt 0:01:18]} 35. Kf1 {[%emt 0:01:11]} Rxc2 {[%emt 0:10:46]} 36. Bd3 {[%emt 0:01:22]} Rxb2 {[%emt 0:05:46]} 37. Rxa7 {[%emt 0:00:42]} Kf4 {[%emt 0:01:19]} 38. Rxg4+ {[%emt 0:01:46]} Kxg4 {[%emt 0:00:12]} 39. Bxg6 {[%emt 0:01:12]} Rc8 {[%emt 0:06:36]} 40. Re7 {[%emt 0:00:13]} Rc3 {[%emt 0:00:42]} 41. Re2 {[%emt 0:04:22]} Rf3+ {[%emt 0:08:18]} 42. Ke1 {[%emt 0:00:21]} Rxe2+ {[%emt 0:00:04]} 43. Kxe2 {[%emt 0:00:07]} Kg3 {[%emt 0:00:05]} 44. Bc2 {[%emt 0:00:46]} Ra3 {normal} 1/2-1/2

[Event "DVM U20 2019"]
[Site "Braunschweig"]
[Date "2019.12.27"]
[Round "2"]
[White "Geltz, Noah"]
[Black "Wiegersma, Justus"]
[Result "1-0"]
[ECO "A39"]
[WhiteElo "2054"]
[BlackElo "1975"]
[Annotator "NA"]
[PlyCount "68"]
[EventDate "2019.12.27"]
[EventType "team-tourn"]
[EventRounds "7"]
[EventCountry "GER"]
[SourceTitle "playchess.com"]
[Source "ChessBase"]
[SourceQuality "1"]
[WhiteTeam "SF HN-Biberach"]
[BlackTeam "SK Turm Kleve"]
[TimeControl "40/5400+30:1800+30"]

1. Nf3 {[%emt 0:00:00]} Nf6 {[%emt 0:00:00]} 2. c4 {[%emt 0:00:10]} g6 {[%emt 0:00:01]} 3. g3 {[%emt 0:00:44]} Bg7 {[%emt 0:00:05]} 4. Bg2 {[%emt 0:00:11]} O-O {[%emt 0:00:14]} 5. O-O {[%emt 0:01:04]} c5 {[%emt 0:00:20]} 6. Nc3 {[%emt 0:00:46]} Nc6 {[%emt 0:00:02]} 7. d4 {[%emt 0:01:38]} cxd4 {[%emt 0:00:01]} 8. Nxd4 {[%emt 0:00:18]} Nxd4 {[%emt 0:02:33]} 9. Qxd4 {[%emt 0:00:40]} d6 {[%emt 0:00:20]} 10. Rd1 {[%emt 0:03:06]} Qa5 {[%emt 0:00:23]} 11. Qd3 {[%emt 0:03:01]} Qh5 {[%emt 0:05:55]} 12. e4 {[%emt 0:06:24]} Ng4 {[%emt 0:10:00]} 13. h3 {[%emt 0:23:05]} Ne5 {[%emt 0:04:47]} 14. Qf1 {[%emt 0:00:26]} Nf3+ {[%emt 0:06:34]} 15. Bxf3 {[%emt 0:01:30]} Qxf3 {[%emt 0:00:03]} 16. Rd3 {[%emt 0:01:03]} Qh5 {[%emt 0:02:54]} 17. g4 {[%emt 0:01:56]} Qh4 {[%emt 0:03:05]} 18. Bf4 {[%emt 0:03:17]} h5 {[%emt 0:10:49]} 19. Bg3 {[%emt 0:02:07]} Qg5 {[%emt 0:00:29]} 20. Nd5 {[%emt 0:01:58]} hxg4 {[%emt 0:03:47]} 21. h4 {[%emt 0:00:13]} Qh5 {[%emt 0:00:40]} 22. Nxe7+ {[%emt 0:00:31]} Kh7 {[%emt 0:00:07]} 23. Nxc8 {[%emt 0:02:16]} Raxc8 {[%emt 0:00:06]} 24. Rxd6 {[%emt 0:00:35]} f5 {[%emt 0:00:45]} 25. Rd5 {[%emt 0:02:39]} Qh6 {[%emt 0:00:55]} 26. exf5 {[%emt 0:01:50]} gxf5 {[%emt 0:00:03]} 27. Qd3 {[%emt 0:00:19]} Qg6 {[%emt 0:01:10]} 28. Re1 {[%emt 0:00:59]} Rf7 {[%emt 0:00:27]} 29. Rd6 {[%emt 0:06:20]} Rf6 {[%emt 0:06:15]} 30. Rxf6 {[%emt 0:02:59]} Qxf6 {[%emt 0:00:04]} 31. Be5 {[%emt 0:04:26]} Qf7 {[%emt 0:02:26]} 32. Bxg7 {[%emt 0:04:47]} Kxg7 {[%emt 0:00:38]} 33. Qd4+ {[%emt 0:00:18]} Kg6 {[%emt 0:01:31]} 34. Qd6+ Kh5 {normal} 1-0

[Event "DVM U20 2019"]
[Site "Braunschweig"]
[Date "2019.12.27"]
[Round "2"]
[White "Verfürth, Kevin"]
[Black "Triantafillidis, Simeon"]
[Result "1/2-1/2"]
[ECO "A20"]
[WhiteElo "2038"]
[BlackElo "1931"]
[Annotator "NA"]
[PlyCount "87"]
[EventDate "2019.12.27"]
[EventType "team-tourn"]
[EventRounds "7"]
[EventCountry "GER"]
[SourceTitle "playchess.com"]
[Source "ChessBase"]
[SourceQuality "1"]
[WhiteTeam "SK Turm Kleve"]
[BlackTeam "SF HN-Biberach"]
[TimeControl "40/5400+30:1800+30"]

1. c4 {[%emt 0:00:00]} e5 {[%emt 0:00:00]} 2. g3 {[%emt 0:00:00]} Nf6 {[%emt 0:00:00]} 3. Bg2 {[%emt 0:00:00]} d5 {[%emt 0:00:04]} 4. cxd5 {[%emt 0:00:10]} Nxd5 {[%emt 0:00:09]} 5. Nc3 {[%emt 0:00:07]} Nb6 {[%emt 0:00:07]} 6. e3 {[%emt 0:00:33]} Nc6 {[%emt 0:02:47]} 7. Nge2 {[%emt 0:00:12]} Be7 {[%emt 0:07:08]} 8. f4 {[%emt 0:04:06]} exf4 {[%emt 0:16:32]} 9. Nxf4 {[%emt 0:00:57]} Ne5 {[%emt 0:00:35]} 10. O-O {[%emt 0:02:17]} c6 {[%emt 0:02:06]} 11. d4 {[%emt 0:01:17]} Ng6 {[%emt 0:01:02]} 12. e4 {[%emt 0:10:00]} O-O {[%emt 0:01:14]} 13. b3 {[%emt 0:01:35]} c5 {[%emt 0:02:38]} 14. Ncd5 {[%emt 0:06:26]} Nxd5 {[%emt 0:07:50]} 15. Nxd5 {[%emt 0:00:31]} cxd4 {[%emt 0:00:21]} 16. Bb2 {[%emt 0:09:37]} Bc5 {[%emt 0:02:33]} 17. b4 {[%emt 0:01:46]} Bd6 {[%emt 0:02:36]} 18. Bxd4 {[%emt 0:01:31]} Be6 {[%emt 0:00:16]} 19. a3 {[%emt 0:03:47]} Bxd5 {[%emt 0:02:10]} 20. exd5 {[%emt 0:00:16]} Be5 {[%emt 0:01:13]} 21. Rc1 {[%emt 0:03:19]} Bxd4+ {[%emt 0:08:55]} 22. Qxd4 {[%emt 0:00:11]} Qd7 {[%emt 0:01:07]} 23. Rc3 {[%emt 0:05:08]} Ne7 {[%emt 0:11:51]} 24. Rfc1 {[%emt 0:02:03]} Nf5 {[%emt 0:03:33]} 25. Qf4 {[%emt 0:02:00]} Nd6 {[%emt 0:09:42]} 26. Rc7 {[%emt 0:03:24]} Qd8 {[%emt 0:00:06]} 27. a4 {[%emt 0:00:52]} Rc8 {[%emt 0:01:02]} 28. Rxc8 {[%emt 0:04:25]} Nxc8 {[%emt 0:00:06]} 29. Qc7 {[%emt 0:05:11]} Nd6 {[%emt 0:02:01]} 30. Qxd8 {[%emt 0:05:17]} Rxd8 {[%emt 0:00:08]} 31. Rc7 {[%emt 0:00:14]} g6 {[%emt 0:00:55]} 32. Kf2 {[%emt 0:01:19]} Kg7 {[%emt 0:01:21]} 33. Ke3 {[%emt 0:06:28]} Kf6 {[%emt 0:02:41]} 34. Kd4 {[%emt 0:02:26]} h5 {[%emt 0:03:40]} 35. Bh3 {[%emt 0:02:18]} g5 {[%emt 0:02:38]} 36. Bf1 {[%emt 0:04:52]} Nf5+ {[%emt 0:04:12]} 37. Kc5 {[%emt 0:03:08]} Ke5 {[%emt 0:01:06]} 38. Bc4 {[%emt 0:01:18]} Nd6 {[%emt 0:00:35]} 39. Re7+ {[%emt 0:04:03]} Kf6 {[%emt 0:00:12]} 40. Re2 {[%emt 0:01:49]} Nf5 {[%emt 0:01:03]} 41. b5 {[%emt 0:33:55]} Rc8+ {[%emt 0:05:26]} 42. Kb4 {[%emt 0:00:00]} Nd6 {[%emt 0:00:22]} 43. Bd3 {[%emt 0:00:00]} b6 {[%emt 0:00:28]} 44. Bc2 {normal Ke5} 1/2-1/2

[Event "DVM U20 2019"]
[Site "Braunschweig"]
[Date "2019.12.27"]
[Round "2"]
[White "Keller, Yannik"]
[Black "Wu, Luka"]
[Result "1-0"]
[ECO "B76"]
[WhiteElo "2020"]
[BlackElo "2073"]
[Annotator "NA"]
[PlyCount "49"]
[EventDate "2019.12.27"]
[EventType "team-tourn"]
[EventRounds "7"]
[EventCountry "GER"]
[SourceTitle "playchess.com"]
[Source "ChessBase"]
[SourceQuality "1"]
[WhiteTeam "Sges Bensheim"]
[BlackTeam "OSG Baden-Baden"]
[TimeControl "40/5400+30:1800+30"]

1. e4 {[%emt 0:00:00]} c5 {[%emt 0:00:00]} 2. Nf3 {[%emt 0:00:00]} d6 {[%emt 0:00:00]} 3. d4 {[%emt 0:00:00]} cxd4 {[%emt 0:00:00]} 4. Nxd4 {[%emt 0:00:00]} Nf6 {[%emt 0:00:00]} 5. Nc3 {[%emt 0:00:00]} g6 {[%emt 0:00:18]} 6. f3 {[%emt 0:03:59]} Bg7 {[%emt 0:01:05]} 7. Be3 {[%emt 0:00:07]} O-O {[%emt 0:01:06]} 8. Bc4 {[%emt 0:04:50]} Nc6 {[%emt 0:00:33]} 9. Bb3 {[%emt 0:02:06]} Bd7 {[%emt 0:00:33]} 10. h4 {[%emt 0:00:52]} Nxd4 {[%emt 0:02:38]} 11. Bxd4 {[%emt 0:00:35]} b5 {[%emt 0:00:11]} 12. Qd2 {[%emt 0:06:28]} a5 13. h5 {[%emt 0:07:56]} e6 {[%emt 0:07:03]} 14. a3 {[%emt 0:07:32]} Qe7 15. hxg6 {[%emt 0:05:37]} fxg6 {[%emt 0:06:20]} 16. O-O-O {[%emt 0:04:49]} Ra6 17. e5 Ne8 {[%emt 0:20:16]} 18. Ne4 {[%emt 0:10:42]} Rf7 {[%emt 0:17:52]} 19. exd6 {[%emt 0:13:25]} Nxd6 {[%emt 0:00:34]} 20. Nc5 {[%emt 0:01:00]} Rc6 {[%emt 0:00:34]} 21. Bxg7 {[%emt 0:02:40]} Kxg7 {[%emt 0:01:21]} 22. Nxd7 {[%emt 0:03:34]} Qxd7 {[%emt 0:00:12]} 23. Qd4+ {[%emt 0:03:44]} Kg8 {[%emt 0:01:08]} 24. Rhe1 {[%emt 0:00:41] normal} Re7 {[%emt 0:00:26]} 25. Qf6 {[%emt 0:01:05] normal} 1-0

[Event "DVM U20 2019"]
[Site "Braunschweig"]
[Date "2019.12.27"]
[Round "2"]
[White "Wu, Leon"]
[Black "Hennemann, Florian"]
[Result "1/2-1/2"]
[ECO "B98"]
[WhiteElo "2019"]
[BlackElo "1865"]
[Annotator "NA"]
[PlyCount "44"]
[EventDate "2019.12.27"]
[EventType "team-tourn"]
[EventRounds "7"]
[EventCountry "GER"]
[SourceTitle "playchess.com"]
[Source "ChessBase"]
[SourceQuality "1"]
[WhiteTeam "OSG Baden-Baden"]
[BlackTeam "Sges Bensheim"]
[TimeControl "40/5400+30:1800+30"]

1. e4 c5 2. Nf3 d6 3. d4 cxd4 4. Nxd4 Nf6 5. Nc3 a6 6. Bg5 e6 7. f4 Be7 8. Qe2 {[%emt 0:06:16]} Nc6 {[%emt 0:05:41]} 9. O-O-O {[%emt 0:04:17]} Qc7 {[%emt 0:04:16]} 10. g4 {[%emt 0:02:40]} b5 {[%emt 0:10:15]} 11. Nxc6 {[%emt 0:04:08]} Qxc6 {[%emt 0:00:17]} 12. e5 Bb7 13. Rg1 {[%emt 0:20:44]} dxe5 {[%emt 0:26:27]} 14. fxe5 {[%emt 0:06:00]} Nd5 {[%emt 0:07:03]} 15. Bxe7 {[%emt 0:02:44]} Nxc3 {[%emt 0:02:36]} 16. bxc3 {[%emt 0:00:18]} Kxe7 {[%emt 0:02:09]} 17. Bg2 {[%emt 0:02:15]} Qc7 {[%emt 0:01:49]} 18. Bxb7 {[%emt 0:00:19]} Qxb7 {[%emt 0:00:05]} 19. Qf2 {[%emt 0:04:12]} Rhc8 {[%emt 0:05:03]} 20. Qh4+ {[%emt 0:04:26]} Ke8 {[%emt 0:04:06]} 21. Qxh7 {[%emt 0:03:20]} Rxc3 {[%emt 0:06:20]} 22. Qxg7 {[%emt 0:06:23]} Qe4 {[%emt 0:02:54] normal} 1/2-1/2